fUST/lending_fUST_20250306
["ID","MTS","AMOUNT","RATE_DAILY","PERIOD"]
[355488543,1741200654307,-3705.62,0.0004,9]
[355488544,1741200654317,-500.0,0.0004,9]
[355488545,1741200654326,-500.0,0.0004,9]
[355488546,1741200654335,-500.0,0.0004,9]
[355488547,1741200654344,-1140.32,0.0004,9]
[355488548,1741200654353,-500.0,0.0004,9]
[355488549,1741200654363,-908.93,0.0004,9]
[355488550,1741200654373,-500.0,0.0004,9]
[355488551,1741200654387,-2683.01,0.0004,9]
[355488552,1741200654398,-2766.46,0.0004,9]
[355488553,1741200654408,-500.0,0.0004,9]
[355488554,1741200654418,-500.0,0.0004,9]
[355488555,1741200654427,-500.0,0.0004,9]
[355488556,1741200654439,-500.0,0.0004,9]
[355488557,1741200654448,-500.0,0.0004,9]
[355488558,1741200654458,-500.0,0.0004,9]
[355488559,1741200654470,-180.58778262,0.0004,9]
[355488560,1741200654480,-500.0,0.0004,9]
[355488561,1741200654489,-500.0,0.0004,9]
[355488562,1741200654499,-1440.84,0.0004,9]
[355488563,1741200654508,-500.0,0.0004,9]
[355488564,1741200654517,-45977.59,0.0004,7]
[355488565,1741200654527,-1449.33,0.0004,9]
[355488566,1741200654536,-500.0,0.0004,9]
[355488567,1741200654546,-500.0,0.0004,9]
[355488568,1741200654555,-150.0,0.00040091,2]
[355488569,1741200654564,-500.0,0.00040273,9]
[355488570,1741200654573,-500.0,0.00040273,9]
[355488571,1741200654583,-500.0,0.00040273,9]
[355488572,1741200654591,-500.0,0.00040273,9]
[355488573,1741200654601,-500.0,0.00040273,9]
[355488574,1741200654611,-500.0,0.00040273,9]
[355488575,1741200654621,-500.0,0.00040273,9]
[355488576,1741200654630,-500.0,0.00040273,9]
[355488577,1741200654640,-500.0,0.00040273,9]
[355488578,1741200654649,-500.0,0.00040273,9]
[355488579,1741200654658,-162.44887745,0.00040273,9]
[355488580,1741200654668,-500.0,0.00040273,9]
[355488581,1741200654677,-500.0,0.00040273,9]
[355488582,1741200654687,-500.0,0.00040273,9]
[355488583,1741200654696,-500.0,0.00040273,9]
[355488584,1741200654705,-524.12,0.00040273,9]
[355488585,1741200654715,-784.54,0.00040273,9]
[355488586,1741200654725,-726.17,0.00040273,9]
[355488587,1741200654735,-500.0,0.00040273,9]
[355488588,1741200654744,-680.8,0.00040273,9]
[355488589,1741200654753,-500.0,0.00040273,9]
[355488590,1741200654763,-1054.77,0.00040273,9]
[355488591,1741200654773,-500.0,0.00040273,9]
[355488592,1741200654783,-500.0,0.00040273,9]
[355488593,1741200654792,-500.0,0.00040273,9]
[355488594,1741200654802,-500.0,0.00040273,9]
[355488595,1741200654811,-500.0,0.00040273,9]
[355488596,1741200654821,-500.0,0.00040273,9]
[355488597,1741200654830,-500.0,0.00040273,9]
[355488598,1741200654840,-500.0,0.00040273,9]
[355488599,1741200654849,-561.79,0.00040273,9]
[355488600,1741200654859,-382.8,0.00040273,9]
[355488601,1741200654868,-500.0,0.00040273,9]
[355488602,1741200654878,-500.0,0.00040273,9]
[355488603,1741200654887,-500.0,0.00040273,9]
[355488604,1741200654897,-500.0,0.00040273,9]
[355488605,1741200654906,-500.0,0.00040273,9]
[355488606,1741200654916,-500.0,0.00040273,9]
[355488607,1741200654925,-500.0,0.00040273,9]
[355488608,1741200654934,-509.3,0.00040273,9]
[355488609,1741200654945,-500.0,0.00040273,9]
[355488610,1741200654954,-500.0,0.00040273,9]
[355488611,1741200654963,-868.22,0.00040273,9]
[355488612,1741200654973,-703.02,0.00040273,9]
[355488613,1741200654982,-500.0,0.00040273,9]
[355488614,1741200654991,-500.0,0.00040273,9]
[355488615,1741200655000,-500.0,0.00040273,9]
[355488616,1741200655010,-500.0,0.00040273,9]
[355488617,1741200655019,-500.0,0.00040273,9]
[355488618,1741200655029,-673.81,0.00040273,9]
[355488619,1741200655038,-6961.68,0.00040273,9]
[355488620,1741200655047,-500.0,0.00040273,9]
[355488621,1741200655057,-631.0,0.00040273,9]
[355488622,1741200655066,-500.0,0.00040273,9]
[355488623,1741200655075,-500.0,0.00040273,9]
[355488624,1741200655085,-632.75,0.00040273,9]
[355488625,1741200655094,-500.0,0.00040273,9]
[355488626,1741200655104,-500.0,0.00040273,9]
[355488627,1741200655113,-500.0,0.00040273,9]
[355488628,1741200655122,-1611.26,0.00040273,9]
[355488629,1741200655131,-500.0,0.00040273,9]
[355488630,1741200655141,-500.0,0.00040273,9]
[355488631,1741200655150,-806.84,0.00040273,9]
[355488632,1741200655160,-500.0,0.00040273,9]
[355488633,1741200655169,-1083.62,0.00040273,9]
[355488634,1741200655178,-5687.39,0.00040273,9]
[355488635,1741200655188,-500.0,0.00040273,9]
[355488636,1741200655197,-274.4,0.00040273,9]
[355488637,1741200655209,-5214.64,0.00040273,9]
[355488638,1741200655218,-500.0,0.00040273,9]
[355488639,1741200655227,-514.64,0.00040273,9]
[355488640,1741200655238,-500.0,0.00040273,9]
[355488641,1741200655247,-7747.47,0.00040273,9]
[355488642,1741200655256,-500.0,0.00040273,9]
[355488643,1741200655265,-500.0,0.00040273,9]
[355488644,1741200655395,-596.78,0.00040273,9]
[355488645,1741200655406,-665.77,0.00040273,9]
[355488646,1741200655416,-500.0,0.00040273,9]
[355488647,1741200655426,-500.0,0.00040273,9]
[355488648,1741200655438,-500.0,0.00040273,9]
[355488649,1741200655447,-621.61,0.00040273,9]
[355488650,1741200655457,-500.0,0.00040273,9]
[355488651,1741200655466,-646.26261676,0.00040273,9]
[355488652,1741200655477,-555.04019233,0.00040273,9]
[355488653,1741200655487,-730.85,0.00040273,9]
[355488654,1741200655496,-510.96,0.00040273,9]
[355488655,1741200655506,-4244.0,0.00040273,9]
[355488656,1741200655515,-1014.8,0.00040273,9]
[355488657,1741200655525,-500.0,0.00040273,9]
[355488658,1741200655535,-969.98,0.00040273,9]
[355488659,1741200655544,-734.2,0.00040273,9]
[355488660,1741200655554,-500.0,0.00040273,9]
[355488661,1741200655564,-3705.62,0.00040273,9]
[355488662,1741200655573,-500.0,0.00040273,9]
[355488663,1741200655583,-500.0,0.00040273,9]
[355488664,1741200655593,-500.0,0.00040273,9]
[355488665,1741200655602,-1140.32,0.00040273,9]
[355488666,1741200655611,-500.0,0.00040273,9]
[355488667,1741200655620,-908.93,0.00040273,9]
[355488668,1741200655630,-592.02,0.00040273,9]
[355488669,1741200655641,-2683.01,0.00040273,9]
[355488670,1741200655651,-2766.46,0.00040273,9]
[355488671,1741200655660,-500.0,0.00040273,9]
[355488672,1741200655670,-500.0,0.00040273,9]
[355488673,1741200655679,-500.0,0.00040273,9]
[355488674,1741200655689,-500.0,0.00040273,9]
[355488675,1741200655699,-500.0,0.00040273,9]
[355488676,1741200655708,-500.0,0.00040273,9]
[355488677,1741200655718,-500.0,0.00040273,9]
[355488678,1741200655728,-500.0,0.00040273,9]
[355488679,1741200655737,-442.93514604,0.00040273,9]
[355488680,1741200655756,-997.90485396,0.00040273,9]
[355488681,1741200655766,-500.0,0.00040273,9]
[355488682,1741200655775,-45977.59,0.00040273,7]
[355488683,1741200655786,-1449.33,0.00040273,9]
[355488684,1741200655795,-500.0,0.00040273,9]
[355488685,1741200655805,-500.0,0.00040273,9]
[355488686,1741200655814,-500.0,0.00040547,9]
[355488687,1741200655824,-500.0,0.00040547,9]
[355488688,1741200655833,-500.0,0.00040547,9]
[355488689,1741200655842,-500.0,0.00040547,9]
[355488690,1741200655852,-500.0,0.00040547,9]
[355488691,1741200655862,-500.0,0.00040547,9]
[355488692,1741200655871,-623.91,0.00040547,9]
[355488693,1741200655881,-500.0,0.00040547,9]
[355488694,1741200655892,-500.0,0.00040547,9]
[355488695,1741200655902,-499.0,0.00040547,9]
[355488696,1741200655912,-500.0,0.00040547,9]
[355488697,1741200655924,-524.12,0.00040547,9]
[355488698,1741200655934,-784.54,0.00040547,9]
[355488699,1741200655944,-726.17,0.00040547,9]
[355488700,1741200655953,-500.0,0.00040547,9]
[355488701,1741200655962,-680.8,0.00040547,9]
[355488702,1741200655972,-500.0,0.00040547,9]
[355488703,1741200655981,-1054.77,0.00040547,9]
[355488704,1741200655991,-500.0,0.00040547,9]
[355488705,1741200656001,-500.0,0.00040547,9]
[355488706,1741200656012,-500.0,0.00040547,9]
[355488707,1741200656022,-500.0,0.00040547,9]
[355488708,1741200656031,-500.0,0.00040547,9]
[355488709,1741200656040,-500.0,0.00040547,9]
[355488710,1741200656050,-500.0,0.00040547,9]
[355488711,1741200656059,-561.79,0.00040547,9]
[355488712,1741200656068,-500.0,0.00040547,9]
[355488713,1741200656078,-500.0,0.00040547,9]
[355488714,1741200656087,-500.0,0.00040547,9]
[355488715,1741200656096,-500.0,0.00040547,9]
[355488716,1741200656105,-500.0,0.00040547,9]
[355488717,1741200656114,-500.0,0.00040547,9]
[355488718,1741200656124,-500.0,0.00040547,9]
[355488719,1741200656133,-509.3,0.00040547,9]
[355488720,1741200656142,-500.0,0.00040547,9]
[355488721,1741200656151,-500.0,0.00040547,9]
[355488722,1741200656161,-868.22,0.00040547,9]
[355488723,1741200656171,-703.02,0.00040547,9]
[355488724,1741200656181,-299.01526833,0.00040547,9]
[355488725,1741200656191,-500.0,0.00040547,9]
[355488726,1741200656200,-500.0,0.00040547,9]
[355488727,1741200656210,-500.0,0.00040547,9]
[355488728,1741200656219,-673.81,0.00040547,9]
[355488729,1741200656228,-6961.68,0.00040547,9]
[355488730,1741200656238,-500.0,0.00040547,9]
[355488731,1741200656247,-631.0,0.00040547,9]
[355488732,1741200656256,-500.0,0.00040547,9]
[355488733,1741200656266,-500.0,0.00040547,9]
[355488734,1741200656275,-632.75,0.00040547,9]
[355488735,1741200656285,-500.0,0.00040547,9]
[355488736,1741200656295,-500.0,0.00040547,9]
[355488737,1741200656304,-500.0,0.00040547,9]
[355488738,1741200656313,-1611.26,0.00040547,9]
[355488739,1741200656322,-500.0,0.00040547,9]
[355488740,1741200656331,-500.0,0.00040547,9]
[355488741,1741200656340,-806.84,0.00040547,9]
[355488742,1741200656350,-500.0,0.00040547,9]
[355488743,1741200656359,-1083.62,0.00040547,9]
[355488744,1741200656368,-5687.39,0.00040547,9]
[355488745,1741200656377,-500.0,0.00040547,9]
[355488746,1741200656390,-5214.64,0.00040547,9]
[355488747,1741200656401,-500.0,0.00040547,9]
[355488748,1741200656411,-514.64,0.00040547,9]
[355488749,1741200656420,-430.51,0.00040547,9]
[355488750,1741200656430,-7747.47,0.00040547,9]
[355488751,1741200656441,-500.0,0.00040547,9]
[355488752,1741200656451,-500.0,0.00040547,9]
[355488753,1741200656460,-596.78,0.00040547,9]
[355488754,1741200656471,-665.77,0.00040547,9]
[355488755,1741200656480,-500.0,0.00040547,9]
[355488756,1741200656489,-500.0,0.00040547,9]
[355488757,1741200656499,-500.0,0.00040547,9]
[355488758,1741200656509,-621.61,0.00040547,9]
[355488759,1741200656518,-189.46,0.00040547,9]
[355488760,1741200656528,-730.85,0.00040547,9]
[355488761,1741200656537,-510.96,0.00040547,9]
[355488762,1741200656547,-4244.0,0.00040547,9]
[355488763,1741200656557,-1014.8,0.00040547,9]
[355488764,1741200656566,-500.0,0.00040547,9]
[355488765,1741200656575,-969.98,0.00040547,9]
[355488766,1741200656585,-734.2,0.00040547,9]
[355488767,1741200656595,-500.0,0.00040547,9]
[355488768,1741200656604,-3705.62,0.00040547,9]
[355488769,1741200656614,-500.0,0.00040547,9]
[355488770,1741200656623,-500.0,0.00040547,9]
[355488771,1741200656632,-500.0,0.00040547,9]
[355488772,1741200656642,-1140.32,0.00040547,9]
[355488773,1741200656651,-500.0,0.00040547,9]
[355488774,1741200656661,-908.93,0.00040547,9]
[355488775,1741200656671,-2683.01,0.00040547,9]
[355488776,1741200656680,-2766.46,0.00040547,9]
[355488777,1741200656691,-500.0,0.00040547,9]
[355488778,1741200656701,-500.0,0.00040547,9]
[355488779,1741200656710,-500.0,0.00040547,9]
[355488780,1741200656719,-500.0,0.00040547,9]
[355488781,1741200656729,-500.0,0.00040547,9]
[355488782,1741200656739,-500.0,0.00040547,9]
[355488783,1741200656748,-500.0,0.00040547,9]
[355488784,1741200656758,-500.0,0.00040547,9]
[355488785,1741200656767,-1440.84,0.00040547,9]
[355488786,1741200656777,-500.0,0.00040547,9]
[355488787,1741200656787,-45977.59,0.00040547,7]
[355488788,1741200656797,-1449.33,0.00040547,9]
[355488789,1741200656806,-500.0,0.00040547,9]
[355488790,1741200656816,-500.0,0.00040547,9]
[355488791,1741200656825,-645.73793636,0.00040547,15]
[355488792,1741200656834,-500.0,0.00040547,15]
[355488793,1741200656844,-233.09,0.0004069,2]
[355488794,1741200656854,-500.0,0.00040821,9]
[355488795,1741200656863,-500.0,0.00040821,9]
[355488796,1741200656873,-500.0,0.00040821,9]
[355488797,1741200656882,-500.0,0.00040821,9]
[355488798,1741200656891,-500.0,0.00040821,9]
[355488799,1741200656901,-465.58569491,0.00040821,9]
[355488800,1741200656911,-410.33571668,0.00040821,9]
[355488801,1741200656921,-588.06869601,0.00040821,9]
[355488802,1741200656930,-500.0,0.00040821,9]
[355488803,1741200656939,-524.12,0.00040821,9]
[355488804,1741200656949,-784.54,0.00040821,9]
[355488805,1741200656958,-726.17,0.00040821,9]
[355488806,1741200656968,-500.0,0.00040821,9]
[355488807,1741200656977,-680.8,0.00040821,9]
[355488808,1741200656987,-500.0,0.00040821,9]
[355488809,1741200656996,-1054.77,0.00040821,9]
[355488810,1741200657006,-500.0,0.00040821,9]
[355488811,1741200657016,-500.0,0.00040821,9]
[355488812,1741200657025,-500.0,0.00040821,9]
[355488813,1741200657035,-500.0,0.00040821,9]
[355488814,1741200657044,-500.0,0.00040821,9]
[355488815,1741200657054,-500.0,0.00040821,9]
[355488816,1741200657063,-500.0,0.00040821,9]
[355488817,1741200657073,-561.79,0.00040821,9]
[355488818,1741200657082,-500.0,0.00040821,9]
[355488819,1741200657091,-500.0,0.00040821,9]
[355488820,1741200657100,-500.0,0.00040821,9]
[355488821,1741200657110,-500.0,0.00040821,9]
[355488822,1741200657119,-500.0,0.00040821,9]
[355488823,1741200657128,-500.0,0.00040821,9]
[355488824,1741200657138,-500.0,0.00040821,9]
[355488825,1741200657147,-509.3,0.00040821,9]
[355488826,1741200657156,-500.0,0.00040821,9]
[355488827,1741200657166,-500.0,0.00040821,9]
[355488828,1741200657175,-868.22,0.00040821,9]
[355488829,1741200657186,-703.02,0.00040821,9]
[355488830,1741200657197,-500.0,0.00040821,9]
[355488831,1741200657206,-183.49551828,0.00040821,9]
[355488832,1741200657215,-500.0,0.00040821,9]
[355488833,1741200657225,-673.81,0.00040821,9]
[355488834,1741200657234,-6961.68,0.00040821,9]
[355488835,1741200657243,-500.0,0.00040821,9]
[355488836,1741200657253,-631.0,0.00040821,9]
[355488837,1741200657262,-500.0,0.00040821,9]
[355488838,1741200657273,-541.0900699,0.00040821,9]
[355488839,1741200657285,-632.75,0.00040821,9]
[355488840,1741200657296,-500.0,0.00040821,9]
[355488841,1741200657306,-500.0,0.00040821,9]
[355488842,1741200657316,-500.0,0.00040821,9]
[355488843,1741200657325,-1611.26,0.00040821,9]
[355488844,1741200657336,-500.0,0.00040821,9]
[355488845,1741200657348,-500.0,0.00040821,9]
[355488846,1741200657360,-806.84,0.00040821,9]
[355488847,1741200657370,-500.0,0.00040821,9]
[355488848,1741200657381,-1083.62,0.00040821,9]
[355488849,1741200657395,-5687.39,0.00040821,9]
[355488850,1741200657405,-500.0,0.00040821,9]
[355488851,1741200657414,-5214.64,0.00040821,9]
[355488852,1741200657423,-500.0,0.00040821,9]
[355488853,1741200657434,-514.64,0.00040821,9]
[355488854,1741200657448,-7747.47,0.00040821,9]
[355488855,1741200657458,-500.0,0.00040821,9]
[355488856,1741200657468,-500.0,0.00040821,9]
[355488857,1741200657479,-596.78,0.00040821,9]
[355488858,1741200657488,-665.77,0.00040821,9]
[355488859,1741200657498,-500.0,0.00040821,9]
[355488860,1741200657507,-500.0,0.00040821,9]
[355488861,1741200657517,-621.61,0.00040821,9]
[355488862,1741200657527,-730.85,0.00040821,9]
[355488863,1741200657536,-510.96,0.00040821,9]
[355488864,1741200657546,-4244.0,0.00040821,9]
[355488865,1741200657556,-1014.8,0.00040821,9]
[355488866,1741200657565,-500.0,0.00040821,9]
[355488867,1741200657574,-969.98,0.00040821,9]
[355488868,1741200657584,-734.2,0.00040821,9]
[355488869,1741200657594,-500.0,0.00040821,9]
[355488870,1741200657603,-3705.62,0.00040821,9]
[355488871,1741200657614,-500.0,0.00040821,9]
[355488872,1741200657624,-500.0,0.00040821,9]
[355488873,1741200657633,-500.0,0.00040821,9]
[355488874,1741200657643,-1140.32,0.00040821,9]
[355488875,1741200657653,-500.0,0.00040821,9]
[355488876,1741200657662,-908.93,0.00040821,9]
[355488877,1741200657672,-2683.01,0.00040821,9]
[355488878,1741200657682,-2766.46,0.00040821,9]
[355488879,1741200657694,-500.0,0.00040821,9]
[355488880,1741200657704,-500.0,0.00040821,9]
[355488881,1741200657714,-500.0,0.00040821,9]
[355488882,1741200657724,-500.0,0.00040821,9]
[355488883,1741200657732,-500.0,0.00040821,9]
[355488884,1741200657741,-500.0,0.00040821,9]
[355488885,1741200657750,-552.34,0.00040821,9]
[355488886,1741200657759,-500.0,0.00040821,9]
[355488887,1741200657768,-1440.84,0.00040821,9]
[355488888,1741200657778,-500.0,0.00040821,9]
[355488889,1741200657787,-45977.59,0.00040821,7]
[355488890,1741200657796,-1449.33,0.00040821,9]
[355488891,1741200657805,-500.0,0.00040821,9]
[355488892,1741200657815,-177.48,0.00040821,9]
[355488893,1741200657824,-720.82,0.000409,30]
[355488894,1741200657833,-500.0,0.00041095,120]
[355488895,1741200657842,-500.0,0.00041095,120]
[355488896,1741200657851,-500.0,0.00041095,120]
[355488897,1741200657860,-500.0,0.00041095,120]
[355488898,1741200657869,-500.0,0.00041095,120]
[355488899,1741200657879,-500.0,0.00041095,120]
[355488900,1741200657888,-524.12,0.00041095,120]
[355488901,1741200657897,-784.54,0.00041095,120]
[355488902,1741200657906,-726.17,0.00041095,120]
[355488903,1741200657915,-500.0,0.00041095,120]
[355488904,1741200657924,-680.8,0.00041095,120]
[355488905,1741200657933,-500.0,0.00041095,120]
[355488906,1741200657943,-1054.77,0.00041095,120]
[355488907,1741200657952,-500.0,0.00041095,120]
[355488908,1741200657960,-500.0,0.00041095,120]
[355488909,1741200657970,-500.0,0.00041095,120]
[355488910,1741200657979,-500.0,0.00041095,120]
[355488911,1741200657988,-295.34020941,0.00041095,120]
[355488912,1741200657997,-500.0,0.00041095,120]
[355488913,1741200658006,-500.0,0.00041095,120]
[355488914,1741200658015,-561.79,0.00041095,120]
[355488915,1741200658024,-500.0,0.00041095,120]
[355488916,1741200658034,-500.0,0.00041095,120]
[355488917,1741200658043,-500.0,0.00041095,120]
[355488918,1741200658052,-500.0,0.00041095,120]
[355488919,1741200658061,-500.0,0.00041095,120]
[355488920,1741200658071,-500.0,0.00041095,120]
[355488921,1741200658080,-500.0,0.00041095,120]
[355488922,1741200658089,-509.3,0.00041095,120]
[355488923,1741200658098,-500.0,0.00041095,120]
[355488924,1741200658107,-500.0,0.00041095,120]
[355488925,1741200658117,-868.22,0.00041095,120]
[355488926,1741200658126,-703.02,0.00041095,120]
[355488927,1741200658135,-500.0,0.00041095,120]
[355488928,1741200658145,-500.0,0.00041095,120]
[355488929,1741200658154,-6961.68,0.00041095,120]
[355488930,1741200658280,-673.81,0.00041095,120]
[355488931,1741200658289,-500.0,0.00041095,120]
[355488932,1741200658299,-631.0,0.00041095,120]
[355488933,1741200658308,-370.12951723,0.00041095,120]
[355488934,1741200658318,-632.75,0.00041095,120]
[355488935,1741200658328,-261.04457051,0.00041095,120]
[355488936,1741200658337,-500.0,0.00041095,120]
[355488937,1741200658346,-500.0,0.00041095,120]
[355488938,1741200658356,-1611.26,0.00041095,120]
[355488939,1741200658365,-500.0,0.00041095,120]
[355488940,1741200658375,-500.0,0.00041095,120]
[355488941,1741200658384,-806.84,0.00041095,120]
[355488942,1741200658398,-500.0,0.00041095,120]
[355488943,1741200658407,-1083.62,0.00041095,120]
[355488944,1741200658416,-5687.39,0.00041095,30]
[355488945,1741200658426,-500.0,0.00041095,120]
[355488946,1741200658437,-5214.64,0.00041095,120]
[355488947,1741200658448,-500.0,0.00041095,120]
[355488948,1741200658457,-514.64,0.00041095,120]
[355488949,1741200658467,-7747.47,0.00041095,120]
[355488950,1741200658476,-500.0,0.00041095,120]
[355488951,1741200658487,-500.0,0.00041095,120]
[355488952,1741200658496,-596.78,0.00041095,120]
[355488953,1741200658506,-665.77,0.00041095,120]
[355488954,1741200658516,-999.0,0.00041095,120]
[355488955,1741200658525,-500.0,0.00041095,120]
[355488956,1741200658535,-500.0,0.00041095,120]
[355488957,1741200658544,-621.61,0.00041095,120]
[355488958,1741200658554,-730.85,0.00041095,120]
[355488959,1741200658563,-510.96,0.00041095,120]
[355488960,1741200658573,-4244.0,0.00041095,120]
[355488961,1741200658582,-1014.8,0.00041095,120]
[355488962,1741200658592,-500.0,0.00041095,120]
[355488963,1741200658601,-969.98,0.00041095,120]
[355488964,1741200658611,-734.2,0.00041095,120]
[355488965,1741200658620,-500.0,0.00041095,120]
[355488966,1741200658630,-3705.62,0.00041095,120]
[355488967,1741200658639,-500.0,0.00041095,120]
[355488968,1741200658648,-500.0,0.00041095,120]
[355488969,1741200658657,-500.0,0.00041095,120]
[355488970,1741200658667,-1140.32,0.00041095,120]
[355488971,1741200658676,-500.0,0.00041095,120]
[355488972,1741200658686,-908.93,0.00041095,120]
[355488973,1741200658698,-2683.01,0.00041095,120]
[355488974,1741200658707,-2766.46,0.00041095,120]
[355488975,1741200658716,-500.0,0.00041095,120]
[355488976,1741200658726,-500.0,0.00041095,120]
[355488977,1741200658735,-500.0,0.00041095,120]
[355488978,1741200658745,-500.0,0.00041095,120]
[355488979,1741200658754,-500.0,0.00041095,120]
[355488980,1741200658763,-500.0,0.00041095,120]
[355488981,1741200658773,-500.0,0.00041095,120]
[355488982,1741200658783,-1440.84,0.00041095,120]
[355488983,1741200658792,-500.0,0.00041095,120]
[355488984,1741200658802,-15904.94640041,0.00041095,7]
[355488985,1741200658818,-8327.01877402,0.00041095,7]
[355488986,1741200658829,-8549.49036369,0.00041095,7]
[355488997,1741201475341,1160.09007963,0.0002,10]
[355488998,1741201493605,1000.0,0.0002,10]
[355489002,1741201751150,-566.90004847,0.000189,2]
[355489003,1741201751174,-504.84889808,0.000239,2]
[355489067,1741201832200,-62.05115039,0.000239,2]
[355489068,1741201832210,-300.0,0.00024999,2]
[355489069,1741201832219,-1123.30969816,0.00025,3]
[355489070,1741201832314,-395.5235498,0.00025,3]
[355489071,1741201832326,-8984.47171728,0.00025,3]
[355489072,1741201832336,-524.07288288,0.000269,4]
[355489073,1741201832345,-420.0,0.00027082,2]
[355489074,1741201832355,-566.90004847,0.000289,2]
[355489075,1741201832364,-587.0,0.00029339,2]
[355489076,1741201832374,-553.0,0.00031784,2]
[355489077,1741201832384,-2625.63379537,0.0003485,2]
[355489078,1741201832394,-170.146869,0.0003495,2]
[355489079,1741201832403,-5844.51380986,0.00035843,2]
[355489092,1741201837930,-1708.82,0.00035843,2]
[355489093,1741201837942,-4717.76605216,0.00035843,2]
[355489094,1741201837953,-6568.68127188,0.00035843,2]
[355489095,1741201837963,-424.182136,0.0003589,2]
[355489096,1741201837972,-168.48763244,0.000362,98]
[355489097,1741201837982,-168.48763242,0.000362,98]
[355489098,1741201837991,-1000.074736,0.000376,10]
[355489100,1741201838001,-223.40453839,0.00037673,2]
[355489102,1741201838010,-435.30958131,0.00037673,2]
[355489104,1741201838019,-416.66666667,0.00037709,2]
[355489106,1741201838029,-500.0,0.0003775,15]
[355489108,1741201838039,-500.0,0.0003775,15]
[355489110,1741201838048,-500.0,0.0003775,15]
[355489112,1741201838057,-500.0,0.0003775,15]
[355489114,1741201838066,-500.0,0.0003775,15]
[355489116,1741201838076,-500.0,0.0003775,2]
[355489118,1741201838085,-500.0,0.0003775,15]
[355489119,1741201838095,-460.24030969,0.0003775,2]
[355489120,1741201838104,-617.44475883,0.0003775,15]
[355489121,1741201838113,-4171.33330403,0.00037751,2]
[355489140,1741201840265,-293.46071226,0.00037751,2]
[355489147,1741201840328,-578.0,0.00037751,2]
[355489149,1741201840342,-1062.49586859,0.00037751,2]
[355489156,1741201840403,-31913.84299704,0.00037751,2]
[355489437,1741201843141,-11278.00000202,0.00037751,2]
[355489444,1741201843200,-2280.57500001,0.00037751,2]
[355489446,1741201843212,-500.0,0.00037751,2]
[355489452,1741201843262,-3937.50000015,0.00037751,2]
[355489454,1741201843274,-497.89299755,0.00037751,2]
[355489645,1741201845996,-2174.02,0.00037751,2]
[355489646,1741201846064,-550.99999998,0.00037751,2]
[355489692,1741202873783,1775.19174779,0.00016,2]
[355489693,1741202916279,19511.83345323,0.000145,2]
[355489700,1741202972089,-251.79929499,0.000189,2]
[355489701,1741202972110,-330.57581714,0.00023,10]
[355489702,1741202972134,-307.2847289,0.00023,10]
[355489762,1741203032337,-192.7152721,0.00023,10]
[355489764,1741203032347,-251.79929499,0.000239,2]
[355489766,1741203032356,-877.53662046,0.0002799,2]